fUST/lending_fUST_20240617
["ID","MTS","AMOUNT","RATE_DAILY","PERIOD"]
[329729189,1718625051876,-1000.0,0.00016289,2]
[329729191,1718625051887,-1000.0,0.00016289,2]
[329729193,1718625051902,-1000.0,0.00016289,2]
[329729195,1718625051915,-1000.0,0.00016289,2]
[329729197,1718625051926,-1000.0,0.00016289,2]
[329729199,1718625051937,-1000.0,0.00016289,2]
[329729201,1718625051948,-1000.0,0.00016289,2]
[329729203,1718625051969,-1000.0,0.00016289,2]
[329729205,1718625051980,-1000.0,0.00016289,2]
[329729207,1718625051992,-1000.0,0.00016289,2]
[329729209,1718625052006,-1000.0,0.00016289,2]
[329729211,1718625052021,-678.548293,0.00016289,2]
[329729212,1718625052035,-151.0,0.00016289,2]
[329729214,1718625052099,-151.0,0.00016289,2]
[329729216,1718625052110,-170.116328,0.00016289,2]
[329729218,1718625052123,-151.0,0.00016289,2]
[329729220,1718625052136,-151.0,0.00016289,2]
[329729222,1718625052147,-216.996502,0.00016289,2]
[329729224,1718625052158,-151.0,0.00016289,2]
[329729226,1718625052171,-152.311017,0.00016289,2]
[329729227,1718625052182,-152.880029,0.00016289,2]
[329729229,1718625052200,-649.141465,0.00016289,2]
[329729231,1718625052212,-151.0,0.00016289,2]
[329729232,1718625052230,-151.0,0.00016289,2]
[329729235,1718625052245,-151.0,0.00016289,2]
[329729237,1718625052257,-151.0,0.00016289,2]
[329729239,1718625052273,-649.141465,0.00016289,2]
[329729241,1718625052287,-264.605845,0.00016289,2]
[329729243,1718625052303,-649.141465,0.00016289,2]
[329729245,1718625052316,-649.141465,0.00016289,2]
[329729246,1718625052329,-474.893051,0.00016289,2]
[329729249,1718625052346,-474.893051,0.00016289,2]
[329729251,1718625052363,-943.748894,0.00016289,2]
[329729253,1718625052378,-474.893051,0.00016289,2]
[329729255,1718625052393,-943.748894,0.00016289,2]
[329729257,1718625052408,-474.893051,0.00016289,2]
[329729259,1718625052421,-943.748894,0.00016289,2]
[329729261,1718625052435,-474.893051,0.00016289,2]
[329729262,1718625052474,-943.748894,0.00016289,2]
[329729264,1718625052494,-943.748894,0.00016289,2]
[329729266,1718625052511,-943.748894,0.00016289,2]
[329729268,1718625052523,-943.748894,0.00016289,2]
[329729270,1718625052536,-943.748894,0.00016289,2]
[329729272,1718625052557,-943.748894,0.00016289,2]
[329729274,1718625052583,-943.748894,0.00016289,2]
[329729277,1718625052617,-474.893051,0.00016289,2]
[329729278,1718625052637,-474.893051,0.00016289,2]
[329729279,1718625052669,-474.893051,0.00016289,2]
[329729280,1718625052685,-474.893051,0.00016289,2]
[329729281,1718625052721,-474.893051,0.00016289,2]
[329729282,1718625052732,-151.0,0.00016289,2]
[329729283,1718625052745,-152.384139,0.00016289,2]
[329729284,1718625052763,-151.0,0.00016289,2]
[329729285,1718625052791,-180.25686,0.00016289,2]
[329729287,1718625052804,-151.0,0.00016289,2]
[329729289,1718625052825,-151.0,0.00016289,2]
[329729291,1718625052844,-151.0,0.00016289,2]
[329729293,1718625052864,-151.0,0.00016289,2]
[329729295,1718625052875,-151.0,0.00016289,2]
[329729297,1718625052890,-151.0,0.00016289,2]
[329729298,1718625052910,-154.034638,0.00016289,2]
[329729300,1718625052921,-151.0,0.00016289,2]
[329729302,1718625052934,-151.0,0.00016289,2]
[329729304,1718625052956,-151.0,0.00016289,2]
[329729306,1718625052973,-151.0,0.00016289,2]
[329729310,1718625052999,-177.957714,0.00016289,2]
[329729312,1718625053011,-151.0,0.00016289,2]
[329729314,1718625053023,-151.0,0.00016289,2]
[329729316,1718625053038,-151.0,0.00016289,2]
[329729318,1718625053051,-151.0,0.00016289,2]
[329729320,1718625053064,-158.910798,0.00016289,2]
[329729322,1718625053076,-1688.782382,0.00016289,2]
[329729324,1718625053087,-1688.782382,0.00016289,2]
[329729326,1718625053098,-1688.782382,0.00016289,2]
[329729328,1718625053116,-1688.782382,0.00016289,2]
[329729330,1718625053129,-1688.782382,0.00016289,2]
[329729332,1718625053147,-1688.782382,0.00016289,2]
[329729334,1718625053160,-1688.782382,0.00016289,2]
[329729337,1718625053176,-1688.782382,0.00016289,2]
[329729339,1718625053199,-1688.782382,0.00016289,2]
[329729341,1718625053214,-1688.782382,0.00016289,2]
[329729343,1718625053229,-1688.782382,0.00016289,2]
[329729345,1718625053247,-1688.782382,0.00016289,2]
[329729347,1718625053260,-1688.782382,0.00016289,2]
[329729349,1718625053279,-1688.782382,0.00016289,2]
[329729350,1718625053291,-1688.782382,0.00016289,2]
[329729352,1718625053304,-1688.782382,0.00016289,2]
[329729354,1718625053319,-151.0,0.00016289,2]
[329729356,1718625053336,-212.214238,0.00016289,2]
[329729358,1718625053349,-240.44691149,0.0001629,2]
[329729360,1718625053362,-946.2991471,0.0001629,2]
[329729361,1718625053387,-1692.62660858,0.0001629,2]
[329729363,1718625053406,-1101.24268017,0.0001629,2]
[329729365,1718625053425,-2817.72604332,0.0001629,2]
[329729367,1718625053449,-152.18491,0.0001629,2]
[329729369,1718625053463,-151.0,0.0001629,2]
[329729371,1718625053476,-151.0,0.0001629,2]
[329729372,1718625053487,-342.614162,0.0001629,2]
[329729374,1718625053500,-342.614162,0.0001629,2]
[329729377,1718625053516,-342.614162,0.0001629,2]
[329729379,1718625053532,-342.614162,0.0001629,2]
[329729382,1718625053549,-342.614162,0.0001629,2]
[329729383,1718625053560,-342.614162,0.0001629,2]
[329729385,1718625053573,-191.407229,0.0001629,2]
[329729387,1718625053588,-191.407229,0.0001629,2]
[329729388,1718625053600,-191.407229,0.0001629,2]
[329729390,1718625053613,-191.407229,0.0001629,2]
[329729392,1718625053627,-191.407229,0.0001629,2]
[329729394,1718625053641,-191.407229,0.0001629,2]
[329729396,1718625053663,-603.431126,0.0001629,2]
[329729398,1718625053680,-603.431126,0.0001629,2]
[329729400,1718625053705,-603.431126,0.0001629,2]
[329729403,1718625053744,-603.431126,0.0001629,2]
[329729405,1718625053775,-603.431126,0.0001629,2]
[329729407,1718625053806,-603.431126,0.0001629,2]
[329729409,1718625053827,-603.431126,0.0001629,2]
[329729411,1718625053876,-603.431126,0.0001629,2]
[329729414,1718625053905,-603.431126,0.0001629,2]
[329729416,1718625053937,-603.431126,0.0001629,2]
[329729418,1718625053976,-603.431126,0.0001629,2]
[329729421,1718625054013,-603.431126,0.0001629,2]
[329729424,1718625054030,-603.431126,0.0001629,2]
[329729425,1718625054066,-603.431126,0.0001629,2]
[329729427,1718625054080,-151.0,0.0001629,2]
[329729429,1718625054095,-151.0,0.0001629,2]
[329729431,1718625054156,-151.0,0.0001629,2]
[329729432,1718625054172,-151.0,0.0001629,2]
[329729434,1718625054185,-239.036031,0.0001629,2]
[329729437,1718625054203,-151.0,0.0001629,2]
[329729438,1718625054214,-151.0,0.0001629,2]
[329729441,1718625054232,-151.0,0.0001629,2]
[329729443,1718625054251,-151.0,0.0001629,2]
[329729445,1718625054274,-151.0,0.0001629,2]
[329729447,1718625054295,-151.0,0.0001629,2]
[329729449,1718625054342,-239.480299,0.0001629,2]
[329729452,1718625054375,-152.133893,0.0001629,2]
[329729454,1718625054402,-151.0,0.0001629,2]
[329729455,1718625054413,-151.0,0.0001629,2]
[329729457,1718625054430,-151.0,0.0001629,2]
[329729459,1718625054449,-151.0,0.0001629,2]
[329729460,1718625054469,-151.0,0.0001629,2]
[329729462,1718625054490,-151.0,0.0001629,2]
[329729463,1718625054516,-155.454492,0.0001629,2]
[329729467,1718625054551,-151.0,0.0001629,2]
[329729470,1718625054594,-151.0,0.0001629,2]
[329729471,1718625054615,-151.0,0.0001629,2]
[329729473,1718625054632,-151.0,0.0001629,2]
[329729475,1718625054652,-151.0,0.0001629,2]
[329729476,1718625054666,-229.081011,0.0001629,2]
[329729479,1718625054686,-151.0,0.0001629,2]
[329729481,1718625054702,-151.0,0.0001629,2]
[329729482,1718625054734,-151.0,0.0001629,2]
[329729484,1718625054769,-151.0,0.0001629,2]
[329729487,1718625054792,-151.0,0.0001629,2]
[329729488,1718625054806,-151.0,0.0001629,2]
[329729490,1718625054826,-151.0,0.0001629,2]
[329729492,1718625054846,-151.0,0.0001629,2]
[329729495,1718625054864,-151.0,0.0001629,2]
[329729497,1718625054880,-152.806506,0.0001629,2]
[329729499,1718625054913,-649.141465,0.0001629,2]
[329729500,1718625054928,-649.141465,0.0001629,2]
[329729502,1718625054963,-649.141465,0.0001629,2]
[329729504,1718625054980,-649.141465,0.0001629,2]
[329729507,1718625054999,-649.141465,0.0001629,2]
[329729509,1718625055016,-649.141465,0.0001629,2]
[329729512,1718625055076,-649.141465,0.0001629,2]
[329729514,1718625055101,-649.141465,0.0001629,2]
[329729515,1718625055121,-649.141465,0.0001629,2]
[329729517,1718625055137,-649.141465,0.0001629,2]
[329729519,1718625055159,-649.141465,0.0001629,2]
[329729521,1718625055178,-649.141465,0.0001629,2]
[329729523,1718625055192,-649.141465,0.0001629,2]
[329729524,1718625055222,-649.141465,0.0001629,2]
[329729526,1718625055241,-649.141465,0.0001629,2]
[329729528,1718625055265,-649.141473,0.0001629,2]
[329729530,1718625055282,-474.893051,0.0001629,2]
[329729533,1718625055308,-943.748894,0.0001629,2]
[329729537,1718625055373,-474.893051,0.0001629,2]
[329729539,1718625055407,-943.748894,0.0001629,2]
[329729541,1718625055423,-943.748894,0.0001629,2]
[329729543,1718625055459,-943.748894,0.0001629,2]
[329729545,1718625055474,-943.748894,0.0001629,2]
[329729547,1718625055491,-474.893051,0.0001629,2]
[329729549,1718625055526,-474.893051,0.0001629,2]
[329729551,1718625055549,-474.893051,0.0001629,2]
[329729553,1718625055562,-943.748894,0.0001629,2]
[329729556,1718625055580,-943.748894,0.0001629,2]
[329729559,1718625055610,-943.748894,0.0001629,2]
[329729561,1718625055630,-474.893051,0.0001629,2]
[329729564,1718625055687,-943.748894,0.0001629,2]
[329729566,1718625055721,-474.893051,0.0001629,2]
[329729568,1718625055749,-943.748903,0.0001629,2]
[329729571,1718625055804,-474.893051,0.0001629,2]
[329729573,1718625055830,-474.893051,0.0001629,2]
[329729575,1718625055851,-474.893059,0.0001629,2]
[329729577,1718625055864,-151.0,0.0001629,2]
[329729579,1718625055876,-151.0,0.0001629,2]
[329729580,1718625055889,-151.0,0.0001629,2]
[329729582,1718625055902,-151.0,0.0001629,2]
[329729584,1718625055914,-1688.782382,0.0001629,2]
[329729586,1718625055952,-1688.78237644,0.0001629,2]
[329729587,1718625055981,-151.0,0.00016291,2]
[329729589,1718625055994,-176.902548,0.00016291,2]
[329729590,1718625056007,-342.614162,0.00016291,2]
[329729592,1718625056022,-342.614162,0.00016291,2]
[329729594,1718625056035,-342.614162,0.00016291,2]
[329729595,1718625056048,-342.614162,0.00016291,2]
[329729597,1718625056060,-342.614162,0.00016291,2]
[329729599,1718625056071,-342.614162,0.00016291,2]
[329729601,1718625056085,-342.614162,0.00016291,2]
[329729602,1718625056101,-342.614162,0.00016291,2]
[329729605,1718625056120,-191.407229,0.00016291,2]
[329729606,1718625056134,-191.407229,0.00016291,2]
[329729608,1718625056145,-191.407229,0.00016291,2]
[329729610,1718625056158,-191.407229,0.00016291,2]
[329729612,1718625056170,-191.407229,0.00016291,2]
[329729613,1718625056181,-191.407229,0.00016291,2]
[329729615,1718625056195,-191.407229,0.00016291,2]
[329729617,1718625056210,-191.407229,0.00016291,2]
[329729618,1718625056231,-191.407229,0.00016291,2]
[329729620,1718625056243,-191.407229,0.00016291,2]
[329729622,1718625056264,-191.407229,0.00016291,2]
[329729623,1718625056276,-191.407229,0.00016291,2]
[329729625,1718625056297,-191.407229,0.00016291,2]
[329729627,1718625056326,-191.407221,0.00016291,2]
[329729629,1718625056362,-603.431126,0.00016291,2]
[329729631,1718625056377,-603.431126,0.00016291,2]
[329729632,1718625056388,-603.431126,0.00016291,2]
[329729634,1718625056402,-603.431126,0.00016291,2]
[329729636,1718625056415,-603.431126,0.00016291,2]
[329729638,1718625056428,-603.43112526,0.00016291,2]
[329729640,1718625056445,-553.63278761,0.00016293,2]
[329729641,1718625056458,-1166.67342291,0.00016293,2]
[329729643,1718625056473,-1442.34664303,0.00016293,2]
[329729645,1718625056486,-692.77111436,0.00016293,2]
[329729646,1718625056501,-155.01550465,0.00016293,2]
[329729648,1718625056514,-342.614162,0.00016293,2]
[329729649,1718625056525,-342.614162,0.00016293,2]
[329729651,1718625056545,-342.614162,0.00016293,2]
[329729653,1718625056569,-342.614162,0.00016293,2]
[329729655,1718625056609,-839.00761591,0.00016295,2]
[329729657,1718625056640,-494.36036822,0.00016295,2]
[329729659,1718625056667,-208.4598643,0.00016295,2]
[329729661,1718625056713,-272.52576032,0.00016295,2]
[329729663,1718625056725,-163.15129649,0.00016295,2]
[329729664,1718625056745,-309.99535231,0.00016295,2]
[329729666,1718625056759,-411.64915333,0.00016295,2]
[329729668,1718625056775,-187.43861548,0.00016295,2]
[329729670,1718625056796,-310.01550155,0.00016295,2]
[329729672,1718625056842,-1501.89648863,0.00016295,2]
[329729674,1718625056868,-195.16599108,0.00016295,2]
[329729676,1718625056887,-552.64146814,0.00016295,2]
[329729677,1718625056902,-922.25169989,0.00016295,2]
[329729679,1718625056919,-192.94456193,0.00016295,2]
[329729680,1718625056933,-1343.59150643,0.00016295,2]
[329729682,1718625056945,-659.93772416,0.00016295,2]
[329729684,1718625056957,-686.61872356,0.00016295,2]
[329729685,1718625056968,-159.10924468,0.00016295,2]
[329729687,1718625056981,-1282.5992588,0.00016295,2]
[329729689,1718625056993,-155.72499586,0.00016295,2]
[329729690,1718625057043,-164.71261991,0.00016295,2]
[329729692,1718625057077,-342.614162,0.00016295,2]
[329729694,1718625057104,-342.614163,0.00016295,2]
[329729696,1718625057130,-176.76373952,0.00016299,2]
[329729698,1718625057164,-500.0,0.00016438,2]
[329729699,1718625057177,-500.0,0.00016438,2]
[329729701,1718625057190,-500.0,0.00016438,2]
[329729703,1718625057201,-500.0,0.00016438,2]
[329729704,1718625057212,-500.0,0.00016438,2]
[329729706,1718625057223,-500.0,0.00016438,2]
[329729708,1718625057234,-500.0,0.00016438,2]
[329729709,1718625057245,-500.0,0.00016438,2]
[329729711,1718625057255,-500.0,0.00016438,2]
[329729713,1718625057286,-178.20687991,0.00016438,2]
[329729715,1718625057298,-500.0,0.00016438,2]
[329729717,1718625057324,-551.78,0.00016438,2]
[329729719,1718625057358,-500.0,0.00016438,2]
[329729721,1718625057377,-1454.62,0.00016438,2]
[329729723,1718625057399,-500.0,0.00016438,2]
[329729724,1718625057410,-511.46726008,0.00016438,2]
[329729726,1718625057422,-500.0,0.00016438,2]
[329729727,1718625057436,-633.11,0.00016438,2]
[329729729,1718625057456,-500.0,0.00016438,2]
[329729730,1718625057469,-500.0,0.00016438,2]
[329729732,1718625057481,-500.0,0.00016438,2]
[329729734,1718625057495,-500.0,0.00016438,2]
[329729736,1718625057519,-500.0,0.00016438,2]
[329729738,1718625057549,-500.0,0.00016438,2]
[329729744,1718625057561,-500.0,0.00016438,2]
[329729747,1718625057685,-500.0,0.00016438,2]
[329729748,1718625057707,-500.0,0.00016438,2]
[329729750,1718625057718,-500.0,0.00016438,2]
[329729752,1718625057730,-500.0,0.00016438,2]
[329729753,1718625057743,-500.0,0.00016438,2]
[329729755,1718625057755,-500.0,0.00016438,2]
[329729756,1718625057769,-500.0,0.00016438,2]
[329729758,1718625057781,-500.0,0.00016438,2]
[329729759,1718625057794,-1053.96,0.00016438,2]
[329729761,1718625057806,-500.0,0.00016438,2]
[329729763,1718625057818,-500.0,0.00016438,2]
[329729765,1718625057839,-596.58,0.00016438,2]
[329729767,1718625057851,-500.0,0.00016438,2]
[329729769,1718625057867,-500.0,0.00016438,2]
[329729771,1718625057887,-500.0,0.00016438,2]
[329729773,1718625057907,-500.0,0.00016438,2]
[329729775,1718625057920,-500.0,0.00016438,2]
[329729776,1718625057932,-500.0,0.00016438,2]
[329729778,1718625057946,-500.0,0.00016438,2]
[329729780,1718625057960,-789.35,0.00016438,2]
[329729781,1718625057973,-1107.93,0.00016438,2]
[329729783,1718625057985,-1239.29,0.00016438,2]
[329729785,1718625058001,-500.0,0.00016438,2]
[329729787,1718625058016,-420.0,0.00016498,2]
[329729788,1718625058033,-493.54,0.00016712,2]
[329729790,1718625058051,-551.78,0.00016712,2]
[329729792,1718625058067,-287.59,0.00016712,2]
[329729793,1718625058085,-1454.62,0.00016712,2]
[329729795,1718625058113,-500.0,0.00016712,2]
[329729797,1718625058129,-500.0,0.00016712,2]
[329729799,1718625058143,-500.0,0.00016712,2]
[329729801,1718625058161,-260.44,0.00016712,2]
[329729803,1718625058173,-1053.96,0.00016712,2]
[329729805,1718625058186,-500.0,0.00016712,2]
[329729806,1718625058199,-500.0,0.00016712,2]
[329729808,1718625058210,-789.35,0.00016712,2]
[329729810,1718625058221,-1107.93,0.00016712,2]
[329729811,1718625058235,-1239.29,0.00016712,2]
[329729813,1718625058246,-500.0,0.00016712,2]
[329729815,1718625058258,-551.78,0.00016986,2]
[329729817,1718625058275,-1454.62,0.00016986,2]
[329729820,1718625058300,-500.0,0.00016986,2]
[329729822,1718625058325,-500.0,0.00016986,2]
[329729824,1718625058346,-500.0,0.00016986,2]
[329729826,1718625058358,-1053.96,0.00016986,2]
[329729827,1718625058371,-500.0,0.00016986,2]
[329729829,1718625058392,-500.0,0.00016986,2]
[329729831,1718625058405,-789.35,0.00016986,2]
[329729832,1718625058420,-1107.93,0.00016986,2]
[329729834,1718625058431,-1239.29,0.00016986,2]
[329729836,1718625058443,-500.0,0.00016986,2]
[329729838,1718625058459,-292.7706602,0.00017076,2]
[329729840,1718625058474,-292.7706602,0.00017076,2]
[329729842,1718625058486,-292.7706602,0.00017076,2]
[329729843,1718625058502,-292.7706602,0.00017076,2]
[329729845,1718625058517,-292.7706602,0.00017076,2]
[329729847,1718625058531,-292.7706602,0.00017076,2]
[329729849,1718625058557,-292.7706602,0.00017076,2]
[329729851,1718625058568,-292.7706602,0.00017076,2]
[329729853,1718625058580,-292.7706602,0.00017076,2]
[329729854,1718625058600,-292.7706602,0.00017076,2]
[329729857,1718625058627,-292.7706602,0.00017076,2]
[329729859,1718625058645,-292.7706602,0.00017076,2]
[329729860,1718625058657,-292.7706602,0.00017076,2]
[329729862,1718625058668,-292.7706602,0.00017076,2]
[329729864,1718625058680,-292.7706602,0.00017076,2]
[329729866,1718625058693,-292.7706602,0.00017078,2]
[329729868,1718625058706,-551.78,0.0001726,2]
[329729870,1718625058727,-1454.62,0.0001726,2]
[329729872,1718625058739,-500.0,0.0001726,2]
[329729874,1718625058751,-413.74,0.0001726,2]
[329729876,1718625058768,-500.0,0.0001726,2]
[329729878,1718625058781,-1053.96,0.0001726,2]
[329729880,1718625058818,-500.0,0.0001726,2]
[329729882,1718625058843,-500.0,0.0001726,2]
[329729883,1718625058856,-789.35,0.0001726,2]
[329729884,1718625058872,-1107.93,0.0001726,2]
[329729885,1718625058884,-1239.29,0.0001726,2]
[329729886,1718625058898,-500.0,0.0001726,2]
[329729887,1718625058908,-292.7706602,0.00017278,2]
[329729888,1718625058926,-292.7706602,0.00017278,2]
[329729889,1718625058956,-292.7706602,0.00017278,2]
[329729890,1718625058975,-292.7706602,0.00017278,2]
[329729891,1718625058988,-292.7706602,0.00017278,2]
[329729892,1718625058998,-292.7706602,0.00017278,2]
[329729893,1718625059013,-292.7706602,0.00017278,2]
[329729894,1718625059066,-500.0,0.00017301,2]
[329729895,1718625059090,-551.78,0.00017534,2]
[329729896,1718625059114,-1454.62,0.00017534,2]
[329729897,1718625059129,-500.0,0.00017534,2]
[329729898,1718625059176,-275.42,0.00017534,2]
[329729900,1718625059219,-1053.96,0.00017534,2]
[329729902,1718625059245,-500.0,0.00017534,2]
[329729903,1718625059261,-500.0,0.00017534,2]
[329729905,1718625059275,-789.35,0.00017534,2]
[329729907,1718625059287,-1107.93,0.00017534,2]
[329729908,1718625059303,-1239.29,0.00017534,2]
[329729910,1718625059319,-500.0,0.00017534,2]
[329729912,1718625059329,-292.7706602,0.00017578,2]
[329729914,1718625059341,-1750.0,0.00017665,2]
[329729916,1718625059353,-500.0,0.00017802,2]
[329729918,1718625059369,-151.0,0.00017803,2]
[329729919,1718625059381,-151.0,0.00017804,2]
[329729921,1718625059395,-501.31024849,0.00017804,2]
[329729923,1718625059407,-500.0,0.00017804,2]
[329729924,1718625059429,-500.0,0.00017804,2]
[329729926,1718625059443,-500.0,0.00017804,2]
[329729928,1718625059454,-500.0,0.00017804,2]
[329729929,1718625059472,-500.0,0.00017804,2]
[329729932,1718625059489,-500.0,0.00017804,2]
[329729933,1718625059508,-500.0,0.00017804,2]
[329729934,1718625059522,-500.0,0.00017804,2]
[329729936,1718625059535,-500.0,0.00017804,2]
[329729938,1718625059547,-500.0,0.00017805,2]
[329729940,1718625059560,-524.52736371,0.00017805,2]
[329729942,1718625059572,-500.0,0.00017805,2]
[329729944,1718625059584,-532.16776344,0.00017805,2]
[329729946,1718625059595,-500.0,0.00017805,2]
[329729947,1718625059606,-500.0,0.00017805,2]
[329729949,1718625059622,-549.21854551,0.00017805,2]
[329729951,1718625059636,-536.61915141,0.00017805,2]
[329729953,1718625059650,-470.0,0.00017805,2]
[329729955,1718625059662,-627.74619491,0.00017805,2]
[329729957,1718625059674,-506.79265098,0.00017805,2]
[329729959,1718625059691,-500.0,0.00017805,2]
[329729961,1718625059708,-500.0,0.00017805,2]
[329729963,1718625059724,-514.1853047,0.00017805,2]
[329729966,1718625059748,-523.18071315,0.00017805,2]
[329729968,1718625059774,-500.0,0.00017805,2]
[329729969,1718625059787,-500.0,0.00017805,2]
[329729971,1718625059803,-301.77041806,0.00017805,2]
[329729973,1718625059822,-500.0,0.00017805,2]
[329729976,1718625059846,-500.0,0.00017805,2]
[329729978,1718625059859,-500.0,0.00017805,2]
[329729980,1718625059871,-500.0,0.00017805,2]
[329729981,1718625059894,-545.30275017,0.00017805,2]
[329729983,1718625059907,-500.0,0.00017805,2]
[329729985,1718625059920,-500.0,0.00017805,2]
[329729987,1718625059936,-500.0,0.00017805,2]
[329729988,1718625059948,-500.0,0.00017805,2]
[329729990,1718625059959,-520.42206899,0.00017805,2]
[329729991,1718625059972,-500.0,0.00017805,2]
[329729992,1718625059983,-500.0,0.00017805,2]
[329729994,1718625059998,-520.18185029,0.00017805,2]
[329729995,1718625060012,-518.1330589,0.00017805,2]
[329729996,1718625060035,-500.0,0.00017805,2]
[329729998,1718625060048,-500.0,0.00017805,2]
[329730000,1718625060066,-500.0,0.00017805,2]
[329730002,1718625060090,-500.0,0.00017805,2]
[329730004,1718625060112,-151.19170385,0.00017805,2]
[329730006,1718625060127,-500.0,0.00017805,2]
[329730007,1718625060140,-513.38575253,0.00017805,2]
[329730009,1718625060153,-500.0,0.00017805,2]
[329730012,1718625060171,-500.0,0.00017805,2]
[329730014,1718625060191,-581.33635213,0.00017805,2]
[329730016,1718625060229,-452.22809468,0.00017805,2]
[329730019,1718625060261,-544.01714374,0.00017805,2]
[329730020,1718625060274,-500.0,0.00017805,2]
[329730022,1718625060296,-500.0,0.00017805,2]
[329730024,1718625060310,-524.07,0.00017805,2]
[329730026,1718625060335,-500.0,0.00017805,2]
[329730028,1718625060366,-500.0,0.00017805,2]
[329730030,1718625060394,-500.0,0.00017805,2]
[329730032,1718625060406,-500.0,0.00017805,2]
[329730034,1718625060417,-490.77971459,0.00017805,2]
[329730036,1718625060427,-500.0,0.00017805,2]
[329730038,1718625060442,-551.78,0.00017808,2]
[329730039,1718625060453,-1454.62,0.00017808,2]
[329730041,1718625060479,-500.0,0.00017808,2]
[329730043,1718625060490,-1053.96,0.00017808,2]
[329730045,1718625060503,-500.0,0.00017808,2]
[329730047,1718625060516,-500.0,0.00017808,2]
[329730049,1718625060529,-789.35,0.00017808,2]
[329730051,1718625060544,-1107.93,0.00017808,2]
[329730053,1718625060556,-1239.29,0.00017808,2]
[329730054,1718625060570,-500.0,0.00017808,2]
[329730056,1718625060581,-160.0,0.00017833,2]
[329730058,1718625060594,-500.0,0.00017896,2]
[329730060,1718625060617,-500.0,0.00017896,2]
[329730061,1718625060629,-650.54,0.00017897,2]
[329730063,1718625060642,-292.7706602,0.00017898,2]
[329730066,1718625060656,-292.7706602,0.00017898,2]
[329730068,1718625060674,-292.7706602,0.00017898,2]
[329730070,1718625060687,-292.7706602,0.00017898,2]
[329730072,1718625060708,-292.7706602,0.00017898,2]
[329730073,1718625060722,-285.8891639,0.00017898,2]
[329730075,1718625060744,-292.7706602,0.00017898,2]
[329730077,1718625060757,-178.298899,0.00017898,2]
[329730078,1718625060781,-476.97437791,0.00018,2]
[329730080,1718625060815,-825.23441337,0.00018,2]
[329730083,1718625060868,-164.60963917,0.00018076,2]
[329730085,1718625060890,-282.3825619,0.00018076,2]
[329730087,1718625060905,-310.0310031,0.00018076,2]
[329730089,1718625060918,-324.83509898,0.00018077,2]
[329730091,1718625060941,-2038.35365167,0.00018077,2]
[329730093,1718625060955,-157.0195297,0.00018078,2]
[329730095,1718625060968,-157.84341236,0.00018078,2]
[329730097,1718625060987,-500.0,0.00018078,2]
[329730099,1718625061008,-1892.53194266,0.00018078,2]
[329730101,1718625061022,-500.0,0.0001808,2]
[329730104,1718625061052,-500.0,0.0001808,2]
[329730105,1718625061066,-500.0,0.0001808,2]
[329730108,1718625061092,-20000.0,0.00018081,2]
[329730110,1718625061104,-551.78,0.00018082,2]
[329730112,1718625061129,-1454.62,0.00018082,2]
[329730114,1718625061141,-500.0,0.00018082,2]
[329730116,1718625061157,-1053.96,0.00018082,2]
[329730118,1718625061174,-601.22148737,0.00018082,2]
[329730120,1718625061188,-500.0,0.00018082,2]
[329730123,1718625061203,-789.35,0.00018082,2]
[329730124,1718625061218,-1107.93,0.00018082,2]